bitfinex/quotes_ETHUSD_20250905
["timestamp","ask_amount","ask_price","bid_price","bid_amount"]
[1757111579516,59.66914314,4310.8,4310.7,29.4901883]
[1757111579717,59.66914314,4310.8,4310.7,19.46637946]
[1757111580014,60.89914314,4310.8,4310.7,28.6901883]
[1757111580226,60.89914314,4310.8,4310.7,29.4821883]
[1757111580403,60.89914314,4310.8,4310.7,26.37037946]
[1757111580718,60.89914314,4310.8,4310.7,28.6901883]
[1757111581086,60.89914314,4310.8,4310.7,29.4821883]
[1757111581398,62.12914314,4310.8,4310.7,29.4821883]
[1757111581582,62.12484314,4310.8,4310.7,29.7942883]
[1757111581786,62.12484314,4310.8,4310.7,29.4821883]
[1757111582323,62.12484314,4310.8,4310.7,29.7942883]
[1757111582618,63.23374314,4310.8,4310.7,32.6260883]
[1757111583998,64.46374314,4310.8,4310.7,32.6260883]
[1757111585732,65.69374314,4310.8,4310.7,32.6260883]
[1757111586336,65.69374314,4310.8,4310.7,39.7960883]
[1757111586994,66.92374314,4310.8,4310.7,39.7960883]
[1757111588429,68.15374314,4310.8,4310.7,39.7960883]
[1757111589932,69.38374314,4310.8,4310.7,39.7960883]
[1757111591601,70.61374314,4310.8,4310.7,39.7960883]
[1757111594432,71.84374314,4310.8,4310.7,36.6521883]
[1757111594797,71.84374314,4310.8,4310.7,36.9602883]
[1757111594994,71.84374314,4310.8,4310.7,37.4202883]
[1757111595240,71.84374314,4310.8,4310.7,39.6977883]
[1757111595814,73.07374314,4310.8,4310.7,39.6977883]
[1757111596506,73.07374314,4310.8,4310.7,36.9602883]
[1757111596830,73.07804314,4310.8,4310.7,36.6521883]
[1757111597009,73.50214314,4310.8,4310.7,29.4761883]
[1757111597212,74.73214314,4310.8,4310.7,29.4761883]
[1757111597807,77.22084314,4310.8,4310.7,26.4761883]
[1757111598024,74.73214314,4310.8,4310.7,29.4761883]
[1757111598227,74.30374314,4310.8,4310.7,29.4761883]
[1757111598403,74.30374314,4310.8,4310.7,32.5217883]
[1757111598608,75.53374314,4310.8,4310.7,32.5217883]
[1757111599934,76.76374314,4310.8,4310.7,32.5217883]
[1757111601039,76.71374314,4310.8,4310.7,32.5217883]
[1757111601235,77.94374314,4310.8,4310.7,32.5217883]
[1757111602441,77.94374314,4310.8,4310.7,32.0617883]
[1757111602641,79.17374314,4310.8,4310.7,32.0617883]
[1757111602809,79.17374314,4310.8,4310.7,32.5217883]
[1757111604411,80.40374314,4310.8,4310.7,32.5217883]
[1757111605834,81.63374314,4310.8,4310.7,32.5217883]
[1757111607624,81.63374314,4310.8,4310.7,29.4761883]
[1757111607822,82.86374314,4310.8,4310.7,29.4761883]
[1757111608924,82.86374314,4310.8,4310.7,36.6461883]
[1757111609134,84.09374314,4310.8,4310.7,36.6461883]
[1757111610261,84.09374314,4310.8,4310.7,36.9542883]
[1757111610434,85.32374314,4310.8,4310.7,36.9542883]
[1757111611554,85.32374314,4310.8,4310.7,36.1622883]
[1757111611748,86.55374314,4310.8,4310.7,36.9542883]
[1757111612145,86.55374314,4310.8,4310.7,36.6461883]
[1757111613153,87.78804314,4310.8,4310.7,36.6461883]
[1757111613358,87.78374314,4310.8,4310.7,32.0617883]
[1757111613525,87.66264314,4310.8,4310.7,32.5217883]
[1757111614460,88.89264314,4310.8,4310.7,32.5217883]
[1757111615263,88.89264314,4310.8,4310.7,31.7297883]
[1757111615421,73.64844815,4310.8,4310.7,32.5217883]
[1757111615627,45.18135137,4310.8,4310.7,32.7540883]
[1757111615960,40.80441326,4310.8,4310.7,32.6388883]
[1757111616256,1e-08,4311.0,4310.9,3.34400122]
[1757111616447,1e-08,4311.0,4310.9,13.55547606]
[1757111616651,1e-08,4311.0,4310.9,16.33374915]
[1757111616851,1e-08,4311.0,4310.9,17.02989286]
[1757111617361,1e-08,4311.0,4310.9,13.13689286]
[1757111617564,1e-08,4311.0,4310.9,17.02989286]
[1757111618664,1.23000001,4311.0,4310.9,17.02989286]
[1757111619763,1.23000001,4311.0,4310.9,14.05809286]
[1757111620059,2.46000001,4311.0,4310.9,14.05809286]
[1757111620289,2.46000001,4311.0,4310.9,13.74999286]
[1757111621278,3.69000001,4311.0,4310.9,13.74999286]
[1757111621430,3.69000001,4311.0,4310.9,20.91999286]
[1757111622081,3.69100001,4311.0,4310.9,21.15229286]
[1757111622442,3.69530001,4311.0,4310.9,21.15229286]
[1757111622642,4.92100001,4311.0,4310.9,21.15229286]
[1757111623342,4.92100001,4311.0,4310.9,21.46749286]
[1757111623953,6.15100001,4311.0,4310.9,21.46749286]
[1757111624492,6.15530001,4311.0,4310.9,20.90261503]
[1757111624702,8.51390001,4311.0,4310.9,3.49761381]
[1757111624856,8.93800001,4311.0,4310.9,7.38661381]
[1757111625057,8.93800001,4311.0,4310.9,13.49831503]
[1757111625258,10.16800001,4311.0,4310.9,11.17861381]
[1757111625663,10.16800001,4311.0,4310.9,13.49831503]
[1757111626166,10.16800001,4311.0,4310.9,11.17861381]
[1757111626365,10.16800001,4311.0,4310.9,13.49831503]
[1757111626688,7.80940001,4311.0,4310.9,13.49831503]
[1757111626891,9.03940001,4311.0,4310.9,13.49831503]
[1757111627697,12.65800001,4311.0,4310.9,7.28961381]
[1757111627994,12.65800001,4311.0,4310.9,11.17861381]
[1757111628182,13.88800001,4311.0,4310.9,18.17861381]
[1757111629560,15.11800001,4311.0,4310.9,18.17861381]
[1757111630572,15.11800001,4311.0,4310.9,20.49831503]
[1757111630790,15.11800001,4311.0,4310.9,18.17861381]
[1757111630964,16.34800001,4311.0,4310.9,18.17861381]
[1757111631471,13.98940001,4311.0,4310.9,18.17861381]
[1757111631794,13.98940001,4311.0,4310.9,20.49831503]
[1757111632373,15.21940001,4311.0,4310.9,18.17861381]
[1757111632774,15.21940001,4311.0,4310.9,20.49831503]
[1757111633174,14.79530001,4311.0,4310.9,20.49831503]
[1757111633667,16.02530001,4311.0,4310.9,18.17861381]
[1757111633867,16.44940001,4311.0,4310.9,18.17861381]
[1757111634168,18.80800001,4311.0,4310.9,18.17661381]
[1757111634999,20.03800001,4311.0,4310.9,18.17661381]
[1757111636299,21.26800001,4311.0,4310.9,18.17661381]
[1757111637799,22.49800001,4311.0,4310.9,18.17661381]
[1757111637973,20.13940001,4311.0,4310.9,18.17661381]
[1757111638399,19.71530001,4311.0,4310.9,14.28961381]
[1757111638702,24.46963001,4311.0,4310.9,16.88061381]
[1757111638863,22.49800001,4311.0,4310.9,16.88061381]
[1757111639267,23.72800001,4311.0,4310.9,16.88061381]
[1757111640704,24.95800001,4311.0,4310.9,16.88061381]
[1757111641999,26.18800001,4311.0,4310.9,16.88061381]
[1757111643484,27.41800001,4311.0,4310.9,16.88061381]
[1757111645004,28.64800001,4311.0,4310.9,16.88061381]
[1757111645676,29.78134529,4311.0,4310.9,16.08861381]
[1757111646488,31.01134529,4311.0,4310.9,16.08861381]
[1757111647439,31.01134529,4311.0,4310.9,12.20461381]
[1757111647580,33.3309927,4311.0,4310.9,15.3904701]
[1757111647914,34.5609927,4311.0,4310.9,15.3904701]
[1757111649287,35.7909927,4311.0,4310.9,15.3904701]
[1757111650494,37.0209927,4311.0,4310.9,15.3904701]
[1757111651922,38.2509927,4311.0,4310.9,15.3904701]
[1757111652687,38.2509927,4311.0,4310.9,16.0870098]
[1757111653197,39.4809927,4311.0,4310.9,16.0870098]
[1757111653601,39.4809927,4311.0,4310.9,16.02901862]
[1757111654619,40.7109927,4311.0,4310.9,16.02901862]
[1757111654933,40.7109927,4311.0,4310.9,15.33247892]
[1757111655590,40.7109927,4311.0,4310.9,15.33147892]
[1757111656017,41.9409927,4311.0,4310.9,15.33147892]
[1757111657849,43.1709927,4311.0,4310.9,15.33147892]
[1757111659444,44.4009927,4311.0,4310.9,15.33147892]
[1757111660807,45.6309927,4311.0,4310.9,15.33147892]
[1757111662200,46.8609927,4311.0,4310.9,15.33147892]
[1757111663624,52.56932451,4311.0,4310.9,15.33147892]
[1757111663832,48.0909927,4311.0,4310.9,15.33147892]
[1757111664300,52.56932451,4311.0,4310.9,15.33147892]
[1757111664501,48.0909927,4311.0,4310.9,15.33147892]
[1757111665039,49.3209927,4311.0,4310.9,15.33147892]
[1757111666640,50.5509927,4311.0,4310.9,15.33147892]
[1757111667014,50.5509927,4311.0,4310.9,18.09097892]
[1757111667015,44.31100001,4311.0,4310.9,18.09097892]
[1757111667312,41.81100001,4311.0,4310.9,19.31167892]
[1757111667499,41.81100001,4311.0,4310.9,20.00811676]
[1757111667932,43.04100001,4311.0,4310.9,20.00811676]
[1757111669555,44.27100001,4311.0,4310.9,20.00811676]
[1757111670944,45.50100001,4311.0,4310.9,20.00811676]
[1757111671839,45.50100001,4311.0,4310.9,16.12711676]
[1757111672043,45.50100001,4311.0,4310.9,20.00711676]
[1757111672243,51.20933182,4311.0,4310.9,12.14691676]
[1757111672450,53.53327923,4311.0,4310.9,16.02691676]
[1757111672809,53.52897923,4311.0,4310.9,16.02691676]
[1757111673342,53.53327923,4311.0,4310.9,16.02691676]
[1757111673648,54.76327923,4311.0,4310.9,16.02691676]
[1757111674057,52.43933182,4311.0,4310.9,16.02691676]
[1757111674213,52.43933182,4311.0,4310.9,16.33301676]
[1757111674412,52.43933182,4311.0,4310.9,20.00711676]
[1757111674413,47.96100001,4311.0,4310.9,20.00711676]
[1757111674829,49.19100001,4311.0,4310.9,21.67301676]
[1757111675114,49.19100001,4311.0,4310.9,21.36791676]
[1757111676324,50.42100001,4311.0,4310.9,21.67401676]
[1757111676716,50.42100001,4311.0,4310.9,21.36791676]
[1757111676917,50.42100001,4311.0,4310.9,21.67401676]
[1757111677317,50.42100001,4311.0,4310.9,21.78921676]
[1757111678346,51.65100001,4311.0,4310.9,21.78921676]
[1757111678643,51.65100001,4311.0,4310.9,21.48311676]
[1757111678950,51.65100001,4311.0,4310.9,21.78921676]
[1757111679547,51.65100001,4311.0,4310.9,22.22451676]
[1757111679750,52.88100001,4311.0,4310.9,22.22451676]
[1757111679948,57.36363182,4311.0,4310.9,21.48311676]
[1757111680132,59.71333182,4311.0,4310.9,21.48311676]
[1757111680521,59.68327923,4311.0,4310.9,21.48311676]
[1757111681150,60.91327923,4311.0,4310.9,21.48311676]
[1757111681346,63.26297923,4311.0,4310.9,17.59811676]
[1757111681554,65.9549872,4311.0,4310.9,21.48111676]
[1757111682415,67.1849872,4311.0,4310.9,21.48111676]
[1757111683646,66.7608872,4311.0,4310.9,21.48111676]
[1757111686164,66.95297923,4311.0,4310.9,21.48111676]
[1757111686565,68.18297923,4311.0,4310.9,21.48111676]
[1757111687962,69.41297923,4311.0,4310.9,21.48111676]
[1757111689439,70.64297923,4311.0,4310.9,21.48111676]
[1757111690141,73.3349872,4311.0,4310.9,15.44567892]
[1757111690745,74.5649872,4311.0,4310.9,15.44567892]
[1757111691130,74.1408872,4311.0,4310.9,15.44567892]
[1757111691336,74.5649872,4311.0,4310.9,15.44567892]
[1757111692251,75.7949872,4311.0,4310.9,15.44567892]
[1757111693579,84.50331901,4311.0,4310.9,15.44567892]
[1757111694574,80.0249872,4311.0,4310.9,15.44567892]
[1757111694758,81.2549872,4311.0,4310.9,15.44567892]
[1757111696266,82.4849872,4311.0,4310.9,15.44567892]
[1757111697582,83.7149872,4311.0,4310.9,15.44567892]
[1757111699082,84.9449872,4311.0,4310.9,15.44567892]
[1757111700489,86.1749872,4311.0,4310.9,15.44567892]
[1757111700851,85.7508872,4311.0,4310.9,15.44567892]
[1757111701973,86.9808872,4311.0,4310.9,15.44567892]
[1757111703261,88.2108872,4311.0,4310.9,15.44567892]
[1757111704582,89.4408872,4311.0,4310.9,15.44567892]
[1757111704786,84.76723979,4311.0,4310.9,15.44567892]
[1757111705090,77.34064742,4311.0,4310.9,18.52577892]
[1757111705587,77.34064742,4311.0,4310.9,19.22235098]
[1757111706089,78.57064742,4311.0,4310.9,19.22235098]
[1757111707284,78.85754742,4311.0,4310.9,16.14325098]
[1757111707485,82.43724742,4311.0,4310.9,16.14325098]
[1757111707689,84.70515539,4311.0,4310.9,16.14325098]
[1757111709286,83.29855539,4311.0,4310.9,16.14325098]
[1757111709487,81.03064742,4311.0,4310.9,16.14325098]
[1757111709661,81.03064742,4311.0,4310.9,16.44405098]
[1757111710052,81.03064742,4311.0,4310.9,16.88945098]
[1757111710491,82.26064742,4311.0,4310.9,16.88945098]
[1757111711553,82.26064742,4311.0,4310.9,19.31805098]
[1757111711759,79.94100001,4311.0,4310.9,19.20285098]
[1757111711960,81.17100001,4311.0,4310.9,19.31805098]
[1757111713065,81.17100001,4311.0,4310.9,20.11005098]
[1757111713278,82.40100001,4311.0,4310.9,20.11005098]
[1757111714692,83.63100001,4311.0,4310.9,20.11005098]
[1757111715797,84.86100001,4311.0,4310.9,20.11005098]
[1757111717399,86.09100001,4311.0,4310.9,20.11005098]
[1757111717593,88.69934742,4311.0,4310.9,12.26225098]
[1757111717773,88.41064742,4311.0,4310.9,16.14225098]
[1757111717973,88.41064742,4311.0,4310.9,16.88845098]
[1757111718396,88.41494742,4311.0,4310.9,16.14225098]
[1757111718562,89.64494742,4311.0,4310.9,16.14225098]
[1757111718898,89.64064742,4311.0,4310.9,16.14225098]
[1757111719191,87.32100001,4311.0,4310.9,19.31705098]
[1757111719692,89.64064742,4311.0,4310.9,19.31705098]
[1757111719991,90.87064742,4311.0,4310.9,19.31705098]
[1757111721273,92.10064742,4311.0,4310.9,19.31705098]
[1757111721595,89.78100001,4311.0,4310.9,20.10905098]
[1757111722501,92.10494742,4311.0,4310.9,16.14225098]
[1757111722801,93.33064742,4311.0,4310.9,16.14225098]
[1757111723177,93.33914742,4311.0,4310.9,12.26225098]
[1757111723392,93.33914742,4311.0,4310.9,16.14225098]
[1757111723591,93.33064742,4311.0,4310.9,16.14225098]
[1757111724163,94.56064742,4311.0,4310.9,16.14225098]
[1757111724368,94.56064742,4311.0,4310.9,16.44305098]
[1757111725307,92.24100001,4311.0,4310.9,16.88845098]
[1757111725600,95.79064742,4311.0,4310.9,16.88845098]
[1757111726789,97.02064742,4311.0,4310.9,16.88845098]
[1757111728603,98.25064742,4311.0,4310.9,16.88845098]
[1757111728908,98.25064742,4311.0,4310.9,16.14225098]
[1757111729114,98.5923878,4311.0,4310.9,16.44305098]
[1757111729409,98.5966878,4311.0,4310.9,16.14225098]
[1757111730008,99.8266878,4311.0,4310.9,16.14225098]
[1757111730397,99.48494742,4311.0,4310.9,16.14225098]
[1757111731104,99.48064742,4311.0,4310.9,16.14225098]
[1757111731311,100.71064742,4311.0,4310.9,16.14225098]
[1757111733090,101.94064742,4311.0,4310.9,16.14225098]
[1757111734613,103.17064742,4311.0,4310.9,16.14225098]
[1757111736075,104.40064742,4311.0,4310.9,16.14225098]
[1757111737083,104.40064742,4311.0,4310.9,10.44005098]
[1757111737084,109.47825539,4311.0,4310.9,10.44005098]
[1757111737287,2.31970122,4310.9,4310.8,0.004]
[1757111737588,8.08826264,4310.9,4310.8,0.004]
[1757111737782,2.31980884,4310.7,4310.6,4.004]
[1757111738013,2.31980884,4310.7,4310.6,7.886]
[1757111738199,2.31991648,4310.5,4310.4,0.004]
[1757111738384,2.31991648,4310.5,4310.4,3.886]
[1757111738584,6.70478314,4310.5,4310.4,3.886]
[1757111738785,11.43527063,4310.5,4310.4,3.886]
[1757111739114,9.19478314,4310.5,4310.2,3.887]
[1757111739282,7.59146542,4310.3,4310.2,0.004]
[1757111739482,7.59146542,4310.3,4310.2,1e-08]
[1757111739718,9.62284717,4310.3,4310.2,1e-08]
[1757111739916,12.07164717,4310.3,4310.2,1e-08]
[1757111740221,13.30164717,4310.3,4310.2,1e-08]
[1757111740411,8.62165717,4310.3,4310.2,1e-08]
[1757111741322,11.62165717,4310.3,4310.2,1e-08]
[1757111741484,12.85165717,4310.3,4310.2,1e-08]
[1757111742517,14.11165717,4310.3,4310.2,1e-08]
[1757111742896,15.34165717,4310.3,4310.2,1e-08]
[1757111744500,16.57165717,4310.3,4310.2,1e-08]
[1757111745530,3.82003412,4310.3,4310.2,0.72870001]
[1757111745824,7.37005824,4310.3,4310.2,0.72870001]
[1757111745994,7.37005824,4310.3,4310.2,3.16690001]
[1757111746818,2.69006824,4310.3,4310.2,3.16690001]
[1757111747025,3.55002412,4310.3,4310.2,3.16690001]
[1757111747213,3.55002412,4310.3,4310.2,3.28290001]
[1757111748319,4.78002412,4310.3,4310.2,3.28290001]
[1757111749593,6.01002412,4310.3,4310.2,3.28290001]
[1757111750923,7.24002412,4310.3,4310.2,3.28290001]
[1757111752546,8.47002412,4310.3,4310.2,3.28290001]
[1757111752925,8.47002412,4310.3,4310.2,0.84470001]
[1757111753844,9.70002412,4310.3,4310.2,3.28290001]
[1757111755125,9.70002412,4310.3,4310.2,7.16390001]
[1757111755311,10.93002412,4310.3,4310.2,7.16390001]
[1757111756031,10.93002412,4310.3,4310.2,4.72570001]
[1757111756543,10.93002412,4310.3,4310.2,4.29650001]
[1757111756745,12.16002412,4310.3,4310.2,4.29650001]
[1757111757954,12.16002412,4310.3,4310.2,4.72570001]
[1757111758116,13.39002412,4310.3,4310.2,4.72570001]
[1757111758452,13.39002412,4310.3,4310.2,7.16390001]
[1757111759670,14.62002412,4310.3,4310.2,4.72570001]
[1757111760749,14.62002412,4310.3,4310.2,4.29650001]
[1757111761053,15.85002412,4310.3,4310.2,4.29650001]
[1757111761473,15.85102412,4310.3,4310.2,4.29650001]
[1757111762770,17.08102412,4310.3,4310.2,4.29650001]
[1757111764364,18.31102412,4310.3,4310.2,4.29650001]
[1757111765776,19.54102412,4310.3,4310.2,4.29650001]
[1757111766444,19.54102412,4310.3,4310.2,7.16390001]
[1757111767067,19.54102412,4310.3,4310.2,4.72570001]
[1757111767370,20.77102412,4310.3,4310.2,4.72570001]
[1757111768277,20.77102412,4310.3,4310.2,3.99700001]
[1757111768575,22.00102412,4310.3,4310.2,3.99700001]
[1757111768772,22.00532412,4310.3,4310.2,3.99700001]
[1757111768946,24.31012412,4310.3,4310.2,3.99700001]
[1757111769678,25.10565915,4310.3,4310.2,3.99700001]
[1757111770066,26.33565915,4310.3,4310.2,3.99700001]
[1757111770265,25.54012412,4310.3,4310.2,3.99700001]
[1757111771777,26.77012412,4310.3,4310.2,3.99700001]
[1757111773038,28.00012412,4310.3,4310.2,3.99700001]
[1757111773779,28.00012412,4310.3,4310.2,3.93899941]
[1757111774369,29.23012412,4310.3,4310.2,3.93899941]
[1757111775787,30.46012412,4310.3,4310.2,3.93899941]
[1757111777283,31.69012412,4310.3,4310.2,3.93899941]
[1757111778590,32.92012412,4310.3,4310.2,3.93899941]
[1757111779986,34.15012412,4310.3,4310.2,3.93899941]
[1757111781296,35.38012412,4310.3,4310.2,3.93899941]
[1757111781455,33.07532412,4310.3,4310.2,3.93899941]
[1757111782095,33.07102412,4310.3,4310.2,3.93899941]
[1757111782791,34.30102412,4310.3,4310.2,3.93899941]
[1757111784078,35.53102412,4310.3,4310.2,3.93899941]
[1757111786116,34.441,4310.3,4310.2,7.57170994]
[1757111786407,34.441,4310.3,4310.2,8.2683014]
[1757111787265,35.671,4310.3,4310.2,8.2683014]
[1757111787687,29.8841,4310.3,4310.2,11.38037935]
[1757111787887,29.8841,4310.3,4310.2,14.38037935]
[1757111788061,29.8841,4310.3,4310.2,14.65963285]
[1757111788261,29.8841,4310.3,4310.2,14.38037935]
[1757111788658,31.1141,4310.3,4310.2,14.38037935]
[1757111790009,29.89483247,4310.3,4310.2,14.0013139]
[1757111790311,31.12483247,4310.3,4310.2,14.11584875]
[1757111790683,31.12483247,4310.3,4310.2,16.76788314]
[1757111790882,31.12483247,4310.3,4310.2,16.65334829]
[1757111791508,32.35483247,4310.3,4310.2,16.65334829]
[1757111792180,19.04197717,4310.3,4310.2,16.65334829]
[1757111792413,18.83230516,4310.3,4310.2,16.65334829]
[1757111792914,20.06230516,4310.3,4310.2,16.65334829]
[1757111794316,21.29230516,4310.3,4310.2,16.65334829]
[1757111796016,22.52230516,4310.3,4310.2,16.65334829]
[1757111796183,22.52230516,4310.3,4310.2,16.76934829]
[1757111797193,17.50360933,4310.3,4310.2,16.76934829]
[1757111797592,18.73360933,4310.3,4310.2,16.76934829]
[1757111798424,18.73360933,4310.3,4310.2,23.76934829]
[1757111799017,19.96360933,4310.3,4310.2,23.76934829]
[1757111799598,19.96360933,4310.3,4310.2,23.5355038]
[1757111800510,21.19360933,4310.3,4310.2,23.5355038]
[1757111801799,22.42360933,4310.3,4310.2,23.5355038]
[1757111802000,21.9848027,4310.3,4310.2,23.5355038]
[1757111803002,13.0596196,4310.3,4310.2,23.5355038]
[1757111803201,1e-08,4310.3,4310.2,23.5355038]
[1757111805915,1.23000001,4310.3,4310.2,23.5355038]
[1757111806214,0.97256187,4310.3,4310.2,16.5355038]
[1757111806410,0.97256187,4310.3,4310.2,14.2305038]
[1757111807509,2.20256187,4310.3,4310.2,14.2305038]
[1757111808336,1.23,4310.5,4310.4,6.1119703]
[1757111808501,1.23,4310.5,4310.4,9.9899703]
[1757111808700,1.23,4310.5,4310.4,13.03934225]
[1757111809006,2.46,4310.5,4310.4,13.73560875]
[1757111809339,2.46,4310.5,4310.4,14.12823912]
[1757111810208,3.69,4310.5,4310.4,14.12823912]
[1757111811236,3.69,4310.5,4310.4,13.82593912]
[1757111811747,4.92,4310.5,4310.4,13.82593912]
[1757111812344,4.92,4310.5,4310.4,14.12823912]
[1757111813241,6.151,4310.5,4310.4,14.12823912]
[1757111814541,7.381,4310.5,4310.4,14.12823912]
[1757111815732,7.6807,4310.5,4310.4,9.55530875]
[1757111816059,11.1902,4310.5,4310.4,13.43330875]
[1757111816259,11.6528,4310.5,4310.4,13.43330875]
[1757111816572,11.6528,4310.5,4310.4,20.60330875]
[1757111816862,11.1902,4310.5,4310.4,16.72530875]
[1757111817042,11.6528,4310.5,4310.4,20.60330875]
[1757111817243,12.1205,4310.5,4310.4,20.60330875]
[1757111817640,12.1205,4310.5,4310.4,13.43330875]
[1757111818670,13.3505,4310.5,4310.4,20.97086875]
[1757111819026,13.8131,4310.5,4310.4,20.97086875]
[1757111819233,15.49421,4310.5,4310.4,5.50589845]
[1757111819532,15.49421,4310.5,4310.4,12.39939875]
[1757111819733,14.1128,4310.5,4310.4,10.07942845]
[1757111819941,15.3428,4310.5,4310.4,13.07942845]
[1757111820261,15.3428,4310.5,4310.4,13.87142845]
[1757111820629,15.3428,4310.5,4310.4,10.87142845]
[1757111820832,15.3428,4310.5,4310.4,18.66886845]
[1757111821270,16.5728,4310.5,4310.4,18.66886845]
[1757111821966,16.5728,4310.5,4310.4,18.66986845]
[1757111822131,20.78207208,4310.5,4310.4,10.99986845]
[1757111822331,20.78207208,4310.5,4310.4,14.87786845]
[1757111822566,22.01207208,4310.5,4310.4,14.18133845]
[1757111822968,22.01207208,4310.5,4310.4,14.97333845]
[1757111823888,22.01207208,4310.5,4310.4,14.18133845]
[1757111824184,20.9221556,4310.5,4310.4,14.18133845]
[1757111825370,22.1521556,4310.5,4310.4,14.18133845]
[1757111825585,20.2628,4310.5,4310.4,14.18133845]
[1757111826779,21.4928,4310.5,4310.4,14.18133845]
[1757111827091,18.451,4310.5,4310.4,17.29330875]
[1757111827584,19.2133,4310.5,4310.4,11.09533845]
[1757111827755,21.4928,4310.5,4310.4,14.97333845]
[1757111828084,19.2133,4310.5,4310.4,17.79330875]
[1757111828284,20.4433,4310.5,4310.4,17.79330875]
[1757111828581,19.681,4310.5,4310.4,21.09560875]
[1757111829186,19.681,4310.5,4310.4,20.90850875]
[1757111829411,19.681,4310.5,4310.4,21.21080875]
[1757111829611,20.911,4310.5,4310.4,23.94850875]
[1757111830993,22.141,4310.5,4310.4,23.94850875]
[1757111832993,23.371,4310.5,4310.4,24.6448302]
[1757111834262,24.601,4310.5,4310.4,24.6448302]
[1757111835576,26.135,4310.5,4310.4,17.6116302]
[1757111835905,28.4422,4310.5,4310.4,20.6976302]
[1757111836204,28.9022,4310.5,4310.4,14.4996599]
[1757111836378,28.9022,4310.5,4310.4,20.6986302]
[1757111836581,28.9022,4310.5,4310.4,21.4906302]
[1757111837025,30.1322,4310.5,4310.4,21.4906302]
[1757111837728,27.365,4310.5,4310.4,21.4906302]
[1757111838020,30.1322,4310.5,4310.4,21.4906302]
[1757111838487,31.3622,4310.5,4310.4,21.4906302]
[1757111839479,31.3622,4310.5,4310.4,21.6058302]
[1757111839909,32.5922,4310.5,4310.4,21.6058302]
[1757111840691,32.5922,4310.5,4310.4,21.9086302]
[1757111840692,29.521,4310.5,4310.4,21.9086302]
[1757111840891,29.521,4310.5,4310.4,24.3036302]
[1757111841091,29.521,4310.5,4310.4,21.9086302]
[1757111841292,30.751,4310.5,4310.4,21.9086302]
[1757111842410,30.751,4310.5,4310.4,24.7615302]
[1757111842630,31.981,4310.5,4310.4,24.7615302]
[1757111843983,33.211,4310.5,4310.4,24.7615302]
[1757111844806,33.211,4310.5,4310.4,24.3036302]
[1757111845115,33.211,4310.5,4310.4,21.9086302]
[1757111845285,34.441,4310.5,4310.4,21.9086302]
[1757111846102,34.441,4310.5,4310.4,21.6058302]
[1757111846421,34.745,4310.5,4310.4,21.6058302]
[1757111846616,35.671,4310.5,4310.4,21.6058302]
[1757111846809,35.671,4310.5,4310.4,21.9086302]
[1757111847982,36.901,4310.5,4310.4,21.9086302]
[1757111849916,38.131,4310.5,4310.4,21.9086302]
[1757111851321,39.361,4310.5,4310.4,21.9086302]
[1757111852724,40.591,4310.5,4310.4,21.9086302]
[1757111853256,43.2022,4310.5,4310.4,16.9348302]
[1757111853522,43.6622,4310.5,4310.4,21.6048302]
[1757111854103,44.8922,4310.5,4310.4,21.6048302]
[1757111854482,41.821,4310.5,4310.4,21.6048302]
[1757111854829,42.125,4310.5,4310.4,21.6048302]
[1757111855123,42.585,4310.5,4310.4,21.6048302]
[1757111855503,43.815,4310.5,4310.4,21.6048302]
[1757111856002,43.355,4310.5,4310.4,21.6048302]
[1757111857614,44.585,4310.5,4310.4,21.6048302]
[1757111857807,44.281,4310.5,4310.4,21.6048302]
[1757111858397,44.281,4310.5,4310.4,21.9076302]
[1757111858802,44.281,4310.5,4310.4,21.6048302]
[1757111859130,45.511,4310.5,4310.4,21.6048302]
[1757111859897,45.511,4310.5,4310.4,21.8980302]
[1757111860102,45.511,4310.5,4310.4,24.7001302]
[1757111860304,39.35220789,4310.5,4310.4,24.7001302]
[1757111861629,40.58220789,4310.5,4310.4,24.7001302]
[1757111863100,41.81220789,4310.5,4310.4,24.7001302]
[1757111864345,43.04220789,4310.5,4310.4,24.7001302]
[1757111865758,44.27220789,4310.5,4310.4,24.7001302]
[1757111867028,45.50320789,4310.5,4310.4,24.7001302]
[1757111868518,0.001,4310.8,4310.7,3.11180884]
[1757111868846,102.05100001,4311.0,4310.9,6.11170122]
[1757111869045,102.05100001,4311.0,4310.9,11.69570122]
[1757111869246,102.05100001,4311.0,4310.9,11.98890122]
[1757111870151,102.35490001,4311.0,4310.9,11.69570122]
[1757111871247,103.28100001,4311.0,4310.9,11.98890122]
[1757111872148,103.28100001,4311.0,4310.9,14.34650122]
[1757111872367,103.28100001,4311.0,4310.9,14.79100122]
[1757111872552,104.51100001,4311.0,4310.9,14.79100122]
[1757111873855,104.51100001,4311.0,4310.9,14.34650122]
[1757111874058,105.74100001,4311.0,4310.9,11.98890122]
[1757111874357,105.74100001,4311.0,4310.9,14.34650122]
[1757111874656,105.62091406,4311.0,4310.9,14.34650122]
[1757111875235,105.62091406,4311.0,4310.9,11.98890122]
[1757111875458,106.85091406,4311.0,4310.9,11.98890122]
[1757111876826,106.85091406,4311.0,4310.9,14.34650122]
[1757111877058,108.08091406,4311.0,4310.9,14.79100122]
[1757111877243,108.08091406,4311.0,4310.9,14.34650122]
[1757111877645,108.08091406,4311.0,4310.9,14.79100122]
[1757111878534,109.31091406,4311.0,4310.9,14.34650122]
[1757111878742,109.31091406,4311.0,4310.9,11.98890122]
[1757111879062,109.31091406,4311.0,4310.9,19.15890122]
[1757111880566,110.54091406,4311.0,4310.9,19.15890122]
[1757111880990,80.81069667,4311.0,4310.9,21.79100122]
[1757111881133,36.30737821,4311.0,4310.9,21.79100122]
[1757111881968,37.53737821,4311.0,4310.9,21.79100122]
[1757111882173,37.53737821,4311.0,4310.9,14.81870122]
[1757111882339,37.84127821,4311.0,4310.9,18.69570122]
[1757111882539,37.53737821,4311.0,4310.9,18.98890122]
[1757111882872,37.53737821,4311.0,4310.9,21.79100122]
[1757111883072,37.53737821,4311.0,4310.9,21.34650122]
[1757111883295,37.84127821,4311.0,4310.9,18.69570122]
[1757111883450,39.07127821,4311.0,4310.9,25.09670122]
[1757111883847,39.07227821,4311.0,4310.9,25.09670122]
[1757111884042,38.76837821,4311.0,4310.9,25.09670122]
[1757111884266,39.07227821,4311.0,4310.9,21.21970122]
[1757111884574,41.93977821,4311.0,4310.9,25.09670122]
[1757111884774,43.16977821,4311.0,4310.9,25.09670122]
[1757111885075,40.77467821,4311.0,4310.9,32.26670122]
[1757111885750,39.99837821,4311.0,4310.9,32.26670122]
[1757111885974,40.30227821,4311.0,4310.9,32.26670122]
[1757111886165,42.00467821,4311.0,4310.9,32.26670122]
[1757111886363,41.53227821,4311.0,4310.9,32.26670122]
[1757111887159,42.00467821,4311.0,4310.9,32.26670122]
[1757111887557,43.23467821,4311.0,4310.9,32.26670122]
[1757111888046,45.62977821,4311.0,4310.9,17.42770122]
[1757111888246,45.62977821,4311.0,4310.9,21.30470122]